bitfinex-derivatives/quotes_SOLF0:USTF0_20260211
["timestamp","ask_amount","ask_price","bid_price","bid_amount"]
[1770837571260,11.2749,79.875,79.8,168.40408288]
[1770837571261,11.2749,79.875,79.834,17.41806308]
[1770837571462,10.74408288,79.89,79.834,17.41806308]
[1770837571463,11.2759,79.868,79.834,17.41806308]
[1770837571764,10.74408288,79.87,79.815,17.41806308]
[1770837572156,11.2781,79.853,79.815,17.41806308]
[1770837572850,11.2791,79.846,79.815,17.41806308]
[1770837573262,10.74408288,79.87,79.815,17.41806308]
[1770837574156,11.276,79.867,79.82,11.2826]
[1770837574356,11.276,79.867,79.821,18.13714498]
[1770837575362,11.277,79.86,79.821,18.13714498]
[1770837576261,10.74408288,79.87,79.808,18.10598806]
[1770837577768,11.2779,79.854,79.81,11.2839]
[1770837578067,11.2779,79.854,79.81,29.69618899]
[1770837578365,11.2779,79.854,79.811,18.41228899]
[1770837578563,11.2787,79.848,79.811,18.41228899]
[1770837579270,11.2787,79.848,79.813,18.41295537]
[1770837580267,10.74408288,79.89,79.822,18.42876075]
[1770837580468,10.74408288,79.87,79.822,18.42876075]
[1770837580765,11.2776,79.856,79.822,18.42876075]
[1770837581167,10.74408288,79.87,79.822,18.42876075]
[1770837581569,22.5398,79.911,79.832,18.42938898]
[1770837581867,10.74408288,79.91,79.832,18.42938898]
[1770837582764,11.274,79.881,79.836,11.2802]
[1770837582969,10.74408288,79.89,79.832,18.42938898]
[1770837584666,11.2771,79.86,79.819,11.2827]
[1770837584971,10.74408288,79.87,79.788,18.63975705]
[1770837585871,11.2781,79.852,79.804,18.66433793]
[1770837586269,11.2781,79.852,79.806,18.66433793]
[1770837586767,11.2781,79.852,79.808,18.66459662]
[1770837587365,11.2781,79.852,79.809,11.2841]
[1770837587570,11.2781,79.852,79.81,18.66459662]
[1770837588568,11.277,79.86,79.812,18.65320296]
[1770837589171,11.278,79.853,79.812,18.65320296]
[1770837589667,10.74408288,79.87,79.795,18.65347192]
[1770837590266,11.2774,79.857,79.805,18.69582394]
[1770837591160,10.74408288,79.87,79.811,18.69629754]
[1770837592475,11.2774,79.858,79.811,18.69629754]
[1770837593766,11.2774,79.858,79.812,18.58715153]
[1770837594164,11.2763,79.865,79.812,18.58715153]
[1770837594568,10.74408288,79.87,79.816,18.58715153]
[1770837594769,11.278,79.853,79.816,18.58715153]
[1770837595076,10.74408288,79.87,79.816,18.58715153]
[1770837595272,10.74408288,79.88,79.816,18.58715153]
[1770837595870,11.2751,79.874,79.825,18.60041021]
[1770837596170,11.61440771,79.901,79.825,18.60041021]
[1770837596570,10.74408288,79.89,79.825,18.60041021]
[1770837598475,10.74408288,79.87,79.825,18.60041021]
[1770837598683,10.74408288,79.87,79.804,18.60176476]
[1770837599582,10.74408288,79.89,79.827,18.60206794]
[1770837600682,10.74408288,79.89,79.829,18.59669392]
[1770837600871,10.74408288,79.87,79.829,18.59669392]
[1770837601374,11.2777,79.856,79.812,29.88059694]
[1770837601979,11.2789,79.847,79.805,11.2847]
[1770837602179,10.74408288,79.85,79.753,18.59855839]
[1770837602378,10.74408288,79.85,79.75,10.74408288]
[1770837602379,22.35849059,79.85,79.762,18.59855839]
[1770837602676,30.51175267,79.892,79.761,158.1]
[1770837602677,11.61440771,79.855,79.795,18.59855839]
[1770837602873,10.74408288,79.91,79.795,18.59855839]
[1770837602874,10.74408288,79.87,79.795,18.59855839]
[1770837603069,10.74408288,79.85,79.778,18.5988524]
[1770837603469,10.74408288,79.83,79.778,18.5988524]
[1770837603875,10.74408288,79.83,79.747,2.18060142]
[1770837603876,10.74408288,79.81,79.762,19.07776032]
[1770837604281,10.74408288,79.81,79.726,99.96]
[1770837604282,10.74408288,79.81,79.727,19.07776032]
[1770837604684,10.74408288,79.81,79.74,19.07776032]
[1770837605279,11.2872,79.788,79.74,19.07776032]
[1770837606381,11.2861,79.796,79.741,19.16184469]
[1770837606783,10.74408288,79.81,79.741,19.16184469]
[1770837607371,11.2885,79.779,79.727,19.16148971]
[1770837607978,11.2896,79.771,79.727,19.16148971]
[1770837608678,10.74408288,79.77,79.705,18.99610897]
[1770837608886,10.78969121,79.77,79.705,18.99610897]
[1770837609188,11.2901,79.768,79.717,18.99610897]
[1770837609985,11.2889,79.777,79.718,19.0711914]
[1770837610180,10.78969121,79.79,79.718,19.0711914]
[1770837610381,11.2893,79.774,79.72,19.0711914]
[1770837610580,10.78969121,79.77,79.72,19.0711914]
[1770837611082,10.78969121,79.79,79.72,19.0711914]
[1770837611787,11.2889,79.777,79.722,19.07095084]
[1770837612383,10.78969121,79.79,79.726,18.97152282]
[1770837612887,10.78969121,79.81,79.726,18.97152282]
[1770837613292,11.2865,79.794,79.742,18.97139078]
[1770837613484,10.78969121,79.81,79.742,18.97139078]
[1770837613684,10.78969121,79.83,79.744,18.95648619]
[1770837613881,10.78969121,79.83,79.746,18.95648619]
[1770837614290,10.78969121,79.83,79.748,18.95648619]
[1770837614489,10.78969121,79.83,79.74,10.78969121]
[1770837614490,10.78969121,79.85,79.772,18.95648619]
[1770837614691,10.78969121,79.85,79.774,18.95648619]
[1770837614878,10.78969121,79.85,79.76,10.78969121]
[1770837614879,10.78969121,79.85,79.786,18.95637277]
[1770837615488,11.2806,79.835,79.786,18.95637277]
[1770837615986,10.78969121,79.85,79.786,18.95637277]
[1770837617083,11.283,79.818,79.786,18.95637277]
[1770837617290,11.283,79.818,79.764,18.92437747]
[1770837618092,11.2841,79.81,79.764,18.92437747]
[1770837619495,11.2841,79.81,79.766,18.89172753]
[1770837619684,11.283,79.818,79.766,18.89172753]
[1770837620392,11.2819,79.826,79.775,18.9061326]
[1770837620584,10.78969121,79.85,79.775,18.9061326]
[1770837620780,22.5584,79.845,79.76,18.90606655]
[1770837621094,10.78969121,79.82,79.76,18.90606655]
[1770837621692,10.78969121,79.8,79.731,18.90606655]
[1770837622090,11.291,79.761,79.717,11.2972]
[1770837622282,10.78969121,79.75,79.651,18.90032772]
[1770837622593,10.78969121,79.75,79.65,10.78969121]
[1770837622594,11.2945,79.737,79.68,11.3025]
[1770837622893,11.2945,79.737,79.681,18.90027795]
[1770837623888,11.2945,79.737,79.686,11.3016]
[1770837624193,10.78969121,79.77,79.687,19.18870885]
[1770837624587,11.2931,79.747,79.692,11.3006]
[1770837624786,11.2931,79.747,79.687,19.18870885]
[1770837624980,10.78969121,79.75,79.687,19.18870885]
[1770837625390,11.2927,79.749,79.691,19.18771384]
[1770837625591,10.78969121,79.75,79.691,19.18771384]
[1770837625992,11.2928,79.749,79.691,19.18771384]
[1770837626189,10.78969121,79.76,79.691,19.18771384]
[1770837626589,11.2951,79.733,79.691,19.18771384]
[1770837626997,10.78969121,79.74,79.691,19.18771384]
[1770837627896,11.2945,79.736,79.691,19.18771384]
[1770837628292,11.2959,79.727,79.671,19.09990872]
[1770837628791,10.78969121,79.76,79.684,19.0992017]
[1770837628985,10.78969121,79.74,79.684,19.0992017]
[1770837629485,11.2967,79.721,79.684,19.0992017]
[1770837630081,11.2967,79.721,79.655,19.10439387]
[1770837630699,11.2982,79.711,79.655,19.10439387]
[1770837631084,10.78969121,79.74,79.655,19.10439387]
[1770837631288,11.297,79.719,79.665,19.10368572]
[1770837631697,10.78969121,79.74,79.665,19.10368572]
[1770837632296,11.2954,79.731,79.67,19.09596003]
[1770837632497,10.78969121,79.74,79.67,19.09596003]
[1770837633692,11.2967,79.721,79.67,19.09596003]
[1770837634097,10.78969121,79.72,79.648,19.30343673]
[1770837634801,11.61440771,79.779,79.65,19.30222577]
[1770837634998,2.94396614,79.769,79.681,15.13887512]
[1770837635297,2.94396614,79.769,79.683,15.13887512]
[1770837635688,11.2945,79.737,79.687,15.13887512]
[1770837636398,1.96083788,79.749,79.687,15.13887512]
[1770837637496,1.96083788,79.749,79.595,176.0035]
[1770837637497,1.96083788,79.749,79.641,15.13887512]
[1770837637799,12.61524918,79.73,79.643,15.13887512]
[1770837637992,22.5814,79.764,79.64,10.78969121]
[1770837637993,2.76011151,79.747,79.664,15.13887512]
[1770837638395,11.296,79.726,79.666,11.3044]
[1770837638703,11.296,79.726,79.667,15.13887512]
[1770837639993,11.297,79.719,79.667,15.13887512]
[1770837640898,11.2981,79.711,79.667,15.13887512]
[1770837641095,2.38969788,79.732,79.667,15.13887512]
[1770837641494,11.2991,79.705,79.667,15.13887512]
[1770837643708,11.2969,79.719,79.667,15.13887512]
[1770837644305,11.2957,79.728,79.667,15.13887512]
[1770837646307,11.2957,79.728,79.668,11.3041]
[1770837646608,1.94731883,79.749,79.67,15.13887512]
[1770837646996,1.94731883,79.749,79.68,10.78969121]
[1770837647196,1.94731883,79.749,79.681,15.13887512]
[1770837647601,11.2949,79.734,79.681,15.13887512]
[1770837648698,11.2949,79.734,79.682,11.3021]
[1770837648903,11.2949,79.734,79.683,15.13887512]
[1770837649701,11.2939,79.741,79.686,15.13887512]
[1770837650305,1.94731883,79.749,79.686,15.13887512]
[1770837650906,1.67560684,79.769,79.699,14.29520037]
[1770837651106,1.67560684,79.786,79.701,14.29520037]
[1770837651410,1.67560684,79.778,79.725,11.296]
[1770837651809,1.67560684,79.778,79.719,14.29520037]
[1770837652109,11.2896,79.772,79.722,14.29520037]
[1770837652510,1.67560684,79.778,79.722,14.29520037]
[1770837652710,11.2907,79.763,79.722,14.29520037]
[1770837652902,1.67560684,79.778,79.722,14.29520037]
[1770837653410,1.81637366,79.769,79.698,11.2998]
[1770837653615,1.81637366,79.769,79.689,14.29520037]
[1770837653913,10.78969121,79.77,79.689,14.29520037]
[1770837653914,2.30591327,79.748,79.69,11.3009]
[1770837654109,2.30591327,79.748,79.689,14.29520037]
[1770837654310,11.295,79.733,79.689,14.29520037]
[1770837654914,11.2936,79.743,79.692,14.29520037]
[1770837655715,11.2936,79.743,79.696,11.3002]
[1770837656613,11.2945,79.736,79.692,14.29520037]
[1770837657007,2.30591327,79.748,79.692,14.29520037]
[1770837657213,11.2936,79.743,79.699,11.2997]
[1770837657415,2.30591327,79.748,79.692,14.29520037]
[1770837657923,2.21134526,79.736,79.679,14.29520037]
[1770837658921,2.15770088,79.753,79.683,14.29520037]
[1770837659514,11.2927,79.749,79.692,14.29520037]
[1770837660715,11.2927,79.749,79.699,14.29520037]
[1770837660911,2.01245555,79.781,79.699,14.29520037]
[1770837661123,2.01245555,79.781,79.701,14.29520037]
[1770837662023,2.01245555,79.781,79.72,14.29520037]
[1770837662325,1.95650192,79.8,79.72,14.29520037]
[1770837662917,1.90537462,79.79,79.72,14.29520037]
[1770837663117,22.5699,79.805,79.73,14.29520037]
[1770837663320,1.90537462,79.804,79.73,14.29520037]
[1770837663625,11.2888,79.777,79.732,14.29520037]
[1770837665622,11.2875,79.786,79.732,14.29520037]
[1770837666326,11.2875,79.786,79.717,149.4]
[1770837666327,11.2853,79.802,79.742,14.29520037]
[1770837666835,11.2862,79.795,79.742,14.29520037]
[1770837667829,11.2852,79.802,79.744,14.29520037]
[1770837668725,11.2852,79.802,79.747,11.2929]
[1770837668927,11.2852,79.802,79.748,14.29520037]
[1770837669325,113.0733923,79.836,79.748,14.29520037]
[1770837669532,1.43926836,79.836,79.751,14.29520037]
[1770837669921,1.43926836,79.836,79.778,14.29520037]
[1770837670121,1.3676655,79.849,79.778,14.29520037]
[1770837670321,1.3676655,79.849,79.779,14.29520037]
[1770837670621,11.2816,79.828,79.779,14.29520037]
[1770837671621,10.76936208,79.86,79.779,14.29520037]
[1770837671817,11.3983241,79.86,79.779,14.29520037]
[1770837672022,11.3983241,79.86,79.781,14.29520037]
[1770837672228,0.62896202,79.859,79.781,14.29520037]
[1770837672631,0.62896202,79.859,79.798,14.29520037]
[1770837673131,11.2786,79.849,79.799,11.2855]
[1770837673321,11.2786,79.849,79.8,14.29520037]
[1770837673729,0.62896202,79.859,79.791,25.58190037]
[1770837673730,11.2796,79.842,79.791,25.58190037]
[1770837673928,11.2796,79.842,79.792,14.29520037]
[1770837674724,11.2785,79.85,79.801,14.29520037]
[1770837675828,11.2795,79.843,79.801,14.29520037]
[1770837676025,0.62896202,79.859,79.801,14.29520037]
[1770837677317,11.2796,79.842,79.801,14.29520037]
[1770837678627,11.2805,79.836,79.801,14.29520037]
[1770837680335,11.2805,79.836,79.794,11.2863]
[1770837682628,0.0422387,79.839,79.751,13.75107661]
[1770837682928,0.04386375,79.799,79.735,13.75026409]
[1770837683627,0.04386375,79.799,79.746,25.04336409]
[1770837683829,0.04386375,79.799,79.747,13.74392942]
[1770837684127,0.04386375,79.799,79.718,156.48]
[1770837684128,10.76936208,79.82,79.756,13.74392942]
[1770837684428,10.76936208,79.8,79.742,13.74392942]
[1770837684628,10.76936208,79.82,79.76,11.291]
[1770837684832,22.5624,79.831,79.717,100.0]
[1770837684833,10.76936208,79.8,79.743,21.0134036]
[1770837685431,11.2875,79.786,79.743,21.0134036]
[1770837685724,11.2884,79.78,79.743,21.0134036]
[1770837686320,10.76936208,79.8,79.743,7.27042982]
[1770837686525,11.2893,79.773,79.743,7.27042982]
[1770837687128,10.76936208,79.78,79.743,7.27042982]
[1770837687732,11.2876,79.785,79.744,13.85335296]
[1770837688728,11.2865,79.793,79.745,11.2932]
[1770837688929,11.2865,79.793,79.746,13.83463469]
[1770837689724,10.76936208,79.8,79.743,7.27042982]
[1770837690737,10.76936208,79.78,79.743,2.982e-05]
[1770837690926,10.76936208,79.78,79.715,13.7262965]
[1770837691128,10.76936208,79.76,79.715,13.7262965]
[1770837691327,10.76936208,79.76,79.691,13.7262965]
[1770837691830,11.2941,79.74,79.691,13.7262965]
[1770837692037,10.76936208,79.76,79.691,13.7262965]
[1770837692341,11.2922,79.753,79.703,13.72821087]
[1770837694440,10.76936208,79.78,79.703,13.72821087]
[1770837694441,11.2933,79.745,79.703,13.72821087]
[1770837695642,11.2922,79.753,79.703,13.72821087]
[1770837696044,10.76936208,79.78,79.703,13.72821087]
[1770837696533,10.76936208,79.78,79.707,13.86514234]
[1770837697048,11.2916,79.757,79.707,13.86514234]
[1770837697544,10.76936208,79.8,79.717,13.86412036]
[1770837698243,10.76936208,79.8,79.732,13.8707132]
[1770837698548,10.76936208,79.82,79.732,13.8707132]
[1770837698934,11.2855,79.8,79.743,13.86970127]
[1770837699838,11.2855,79.8,79.748,13.85517536]
[1770837701246,11.2866,79.792,79.748,13.85517536]
[1770837703044,10.76936208,79.82,79.748,13.85517536]
[1770837703256,10.76936208,79.8,79.727,13.85991822]
[1770837704149,11.2878,79.784,79.735,13.8755674]
[1770837704345,10.76936208,79.8,79.735,13.8755674]
[1770837704552,10.76936208,79.82,79.735,13.8755674]
[1770837705446,10.76936208,79.8,79.737,13.87460914]
[1770837706750,11.2885,79.779,79.737,13.87460914]
[1770837709647,10.76936208,79.8,79.737,13.87460914]
[1770837709648,11.2886,79.778,79.737,13.87460914]
[1770837710049,10.76936208,79.8,79.737,13.87460914]
[1770837711756,11.2876,79.785,79.737,13.87460914]
[1770837712055,10.76936208,79.8,79.737,13.87460914]
[1770837712754,10.76936208,79.8,79.691,37.66]
[1770837712755,10.76936208,79.78,79.72,13.88727708]
[1770837713455,11.2918,79.756,79.72,13.88727708]
[1770837713652,10.76936208,79.78,79.72,13.88727708]
[1770837714547,11.2916,79.757,79.72,13.88727708]
[1770837714751,10.76936208,79.76,79.694,13.89679881]
[1770837715946,10.76936208,79.78,79.712,13.91217015]
[1770837716351,23.08487214,79.824,79.712,13.91217015]
[1770837716352,10.76936208,79.8,79.712,13.91217015]
[1770837717155,11.2898,79.77,79.729,13.91128439]
[1770837719454,11.2898,79.77,79.71,111.7]
[1770837719455,11.2898,79.77,79.731,13.83712951]
[1770837721067,10.76936208,79.78,79.715,13.84336727]
[1770837721668,10.76936208,79.8,79.715,13.84336727]
[1770837722463,11.2886,79.778,79.733,13.84733085]
[1770837722965,11.2886,79.778,79.736,13.84657375]
[1770837723166,11.2877,79.785,79.736,13.84657375]
[1770837723561,10.76936208,79.8,79.736,13.84657375]
[1770837723562,10.76936208,79.8,79.74,11.2939]
[1770837723767,11.2883,79.781,79.741,13.84657375]
[1770837725262,10.76936208,79.8,79.741,13.84657375]
[1770837725263,11.2892,79.774,79.741,13.84657375]
[1770837726882,11.2882,79.781,79.741,13.84657375]
[1770837728479,11.2891,79.775,79.741,13.84657375]
[1770837735290,11.63477224,79.817,79.745,13.93956782]
[1770837735493,11.63477224,79.831,79.751,13.93956782]
[1770837736283,34.19687224,79.832,79.751,13.93956782]
[1770837736488,11.2847,79.806,79.766,13.93761834]
[1770837736691,11.63477224,79.853,79.771,13.93761834]
[1770837736988,10.78026915,79.86,79.795,13.93687211]
[1770837736989,11.2806,79.835,79.795,13.93687211]
[1770837738091,11.2794,79.843,79.795,13.93687211]
[1770837739798,11.2794,79.843,79.798,14.01376388]
[1770837740392,11.2784,79.851,79.801,14.01376388]
[1770837740595,10.78026915,79.86,79.786,14.01376388]
[1770837741087,11.2835,79.814,79.786,14.01376388]
[1770837741891,22.555,79.857,79.786,14.01376388]
[1770837742300,11.2822,79.823,79.786,14.01376388]
[1770837744394,11.2811,79.832,79.786,14.01376388]
[1770837744897,11.2822,79.824,79.786,14.01376388]
[1770837745790,22.5571,79.85,79.772,14.05460733]
[1770837746000,10.78026915,79.84,79.772,14.05460733]
[1770837746193,10.78026915,79.84,79.773,11.2892]
[1770837746396,10.78026915,79.86,79.772,14.05460733]
[1770837746589,11.2813,79.83,79.772,14.05460733]
[1770837746792,10.78026915,79.86,79.772,14.05460733]
[1770837746996,10.78026915,79.86,79.789,14.05383526]
[1770837747197,11.2809,79.833,79.789,14.05383526]
[1770837748004,11.2798,79.84,79.794,14.05403734]
[1770837748799,11.2798,79.84,79.795,11.2861]
[1770837749102,11.2798,79.84,79.796,14.05329111]
[1770837749898,11.2798,79.84,79.798,11.2857]
[1770837750099,11.2798,79.84,79.799,14.05669983]
[1770837751102,10.78026915,79.86,79.786,14.05596296]
[1770837751699,10.78026915,79.86,79.794,11.2862]
[1770837752707,11.28,79.839,79.794,11.2862]
[1770837753201,22.5511,79.871,79.795,14.05558633]
[1770837753407,333.02592218,79.883,79.801,14.05558633]
[1770837753607,22.5457,79.89,79.801,14.05558633]
[1770837753800,11.2753,79.872,79.829,11.2813]
[1770837754002,11.2753,79.872,79.83,14.04042447]
[1770837754199,11.63477224,79.921,79.83,14.04042447]
[1770837754397,10.78026915,79.92,79.83,14.04042447]
[1770837754604,11.2723,79.894,79.847,14.04042447]
[1770837757613,11.48377511,79.879,79.79,10.78026915]
[1770837757814,11.48377511,79.879,79.791,99.98]
[1770837758315,11.48377511,79.859,79.791,99.98]
[1770837759316,11.2779,79.854,79.794,11.2863]
[1770837759513,11.2779,79.854,79.791,99.98]
[1770837759708,11.2779,79.854,79.792,11.93304157]
[1770837760617,11.2779,79.854,79.791,99.98]
[1770837760618,11.2779,79.854,79.803,11.93304157]
[1770837761119,11.2766,79.864,79.81,11.93304157]
[1770837761712,11.33109819,79.862,79.795,11.93304157]
[1770837762219,10.78026915,79.86,79.797,11.93304157]
[1770837762414,11.33736997,79.859,79.797,11.93304157]
[1770837762712,10.78026915,79.86,79.797,11.93304157]
[1770837762713,11.32898144,79.879,79.797,11.93304157]
[1770837762918,11.2754,79.872,79.823,11.93304157]
[1770837763514,11.32104589,79.863,79.806,11.93304157]
[1770837764723,11.2783,79.851,79.806,11.93304157]
[1770837766217,11.2803,79.837,79.789,11.93304157]
[1770837766415,11.2803,79.837,79.79,23.21994157]
[1770837766616,11.30365105,79.85,79.791,11.93304157]
[1770837767716,11.2791,79.845,79.794,11.2862]
[1770837767916,22.55936883,79.845,79.794,11.2862]
[1770837768112,22.55936883,79.845,79.795,11.93304157]
[1770837768815,11.27293407,79.843,79.795,11.93304157]
[1770837769017,22.5499,79.875,79.781,11.93304157]
[1770837769018,11.27293407,79.839,79.781,11.93304157]
[1770837769815,11.2809,79.833,79.79,11.93304157]
[1770837770321,11.2867651,79.832,79.774,11.93304157]
[1770837770721,11.2824,79.822,79.774,11.93304157]
[1770837771418,11.25334389,79.821,79.775,11.2889]
[1770837771610,11.24624434,79.835,79.774,11.93304157]
[1770837771922,10.78026915,79.85,79.774,11.93304157]
[1770837771923,22.02651349,79.85,79.774,11.93304157]
[1770837772119,22.02651349,79.85,79.799,12.21203784]
[1770837772120,11.2786,79.849,79.799,12.21203784]
[1770837773420,11.2798,79.841,79.799,12.21203784]
[1770837773721,99.96,79.887,79.802,12.21203784]
[1770837773722,11.36334229,79.869,79.802,12.21203784]
[1770837774820,11.2786,79.849,79.806,12.21203784]
[1770837776125,11.2776,79.856,79.808,12.21203784]
[1770837776825,11.2776,79.856,79.809,11.2842]
[1770837777026,11.2776,79.856,79.79,10.78026915]
[1770837777027,11.2762,79.866,79.81,12.21203784]
[1770837778222,11.2771,79.86,79.821,11.2824]
[1770837779020,11.2771,79.86,79.815,12.21203784]
[1770837779828,11.36334229,79.869,79.815,12.21203784]
[1770837780822,11.277,79.861,79.816,12.21203784]
[1770837781624,11.2778,79.855,79.816,12.21203784]
[1770837781829,11.36334229,79.869,79.806,11.2845]
[1770837782231,11.36334229,79.869,79.806,23.49653784]
[1770837782729,11.36334229,79.869,79.809,12.21203784]
[1770837783530,11.36334229,79.869,79.819,12.21203784]
[1770837783932,10.06677363,79.889,79.819,12.21203784]
[1770837784337,11.2755,79.871,79.828,11.2815]
[1770837784535,11.2755,79.871,79.828,23.49353784]
[1770837785230,11.2755,79.871,79.828,12.21203784]
[1770837785436,10.06125506,79.86,79.809,12.21203784]
[1770837785931,10.06125506,79.86,79.818,12.21203784]
[1770837786133,11.2766,79.864,79.818,12.21203784]
[1770837786437,10.05415811,79.874,79.819,11.2827]
[1770837787136,11.2764,79.865,79.825,11.2819]
[1770837787335,11.2764,79.865,79.82,12.21203784]
[1770837787336,10.05415811,79.874,79.82,12.21203784]
[1770837787631,11.2771,79.859,79.821,11.2824]
[1770837787833,9.87157544,79.886,79.822,12.21203784]
[1770837788526,9.87157544,79.886,79.8,10.78026915]
[1770837788527,11.2754,79.872,79.827,12.21203784]
[1770837790431,9.9171334,79.879,79.835,12.21203784]
[1770837791731,11.2748,79.876,79.835,12.21203784]
[1770837792135,9.91157667,79.875,79.805,12.21203784]
[1770837792440,9.91157667,79.875,79.819,11.2827]
[1770837792640,9.91157667,79.875,79.805,12.21203784]
[1770837792833,11.2763,79.865,79.805,12.21203784]
[1770837793234,9.91157667,79.875,79.805,12.21203784]
[1770837794337,11.2772,79.859,79.809,12.21203784]
[1770837795642,11.2772,79.859,79.79,153.25966791]
[1770837795643,11.2772,79.859,79.817,12.21203784]
[1770837796341,11.2772,79.859,79.819,12.21203784]
[1770837796744,11.2772,79.859,79.82,11.2825]
[1770837796942,11.2772,79.859,79.821,12.21203784]
[1770837797244,11.2772,79.859,79.794,15.2467438]
[1770837797245,9.90949429,79.889,79.831,12.21203784]
[1770837797645,4.01578307,79.88,79.831,12.21203784]
[1770837798544,4.01578307,79.88,79.834,12.21203784]
[1770837800043,9.93945895,79.889,79.841,12.21203784]
[1770837800745,9.93945895,79.889,79.841,23.49163784]
[1770837800947,9.93945895,79.889,79.83,99.94]
[1770837800948,11.2717,79.898,79.85,4.01578307]
[1770837801142,4.01578307,79.9,79.851,11.72530644]
[1770837801339,4.01578307,79.93,79.881,11.72530644]
[1770837801638,9.95390228,79.936,79.827,175.4922]
[1770837801639,9.94853676,79.949,79.891,11.72530644]
[1770837801845,4.01578307,79.94,79.891,11.72530644]
[1770837802247,4.01578307,79.93,79.891,11.72530644]
[1770837802633,4.01578307,79.95,79.908,11.2702]
[1770837802834,9.86900432,79.952,79.908,11.2702]
[1770837803540,9.86900432,79.952,79.909,11.72530644]
[1770837803748,11.2634,79.957,79.909,11.72530644]
[1770837803935,10.05948055,79.947,79.894,22.99740644]
[1770837804443,10.05948055,79.947,79.898,11.72530644]
[1770837804647,10.05421556,79.962,79.898,11.72530644]
[1770837805147,10.05470129,79.959,79.898,11.72530644]
[1770837805738,10.04951635,79.95,79.898,11.72530644]
[1770837806645,10.03449426,79.943,79.884,22.99880644]
[1770837806851,10.03449426,79.939,79.884,22.99880644]
[1770837807234,11.2666,79.934,79.887,22.68466436]
[1770837808450,10.73386034,79.94,79.887,22.68466436]
[1770837808451,10.14983184,79.933,79.887,22.68466436]
[1770837810042,10.73386034,79.94,79.892,11.41156436]
[1770837810243,20.80809042,79.94,79.892,11.41156436]
[1770837810638,10.07423008,79.94,79.892,11.41156436]
[1770837811345,10.06961836,79.959,79.892,11.41156436]
[1770837812747,10.06961836,79.959,79.895,11.41156436]
[1770837813446,10.06961836,79.959,79.897,11.41156436]
[1770837814746,11.2648,79.947,79.9,11.41156436]
[1770837815642,11.2648,79.947,79.901,22.68266436]
[1770837816046,11.2648,79.947,79.902,11.41156436]
[1770837816754,11.2648,79.947,79.903,11.2709]
[1770837816955,11.2636,79.955,79.904,11.41156436]
[1770837817246,10.04027408,79.954,79.898,11.2716]
[1770837817756,10.03575981,79.951,79.898,11.41156436]
[1770837818056,10.03575981,79.951,79.905,11.2705]
[1770837818857,21.29116077,79.95,79.905,11.2705]
[1770837819449,10.73386034,79.96,79.898,11.41156436]
[1770837819450,10.02231125,79.944,79.898,11.41156436]
[1770837819754,10.73386034,79.96,79.898,11.41156436]
[1770837819755,9.95948754,79.959,79.898,11.41156436]
[1770837820253,9.95948754,79.959,79.908,11.41156436]
[1770837820952,11.2643,79.951,79.909,11.27]
[1770837821147,11.2643,79.951,79.91,11.41156436]
[1770837821347,11.2633,79.958,79.912,11.2696]
[1770837821549,9.95095714,79.997,79.911,11.41156436]
[1770837821752,9.95095714,79.997,79.913,11.41156436]
[1770837822055,9.95095714,79.997,79.944,11.41156436]
[1770837823352,11.2597,79.983,79.944,11.41156436]
[1770837824148,11.2607,79.976,79.934,11.2665]
[1770837825058,11.2607,79.976,79.93,4.00489852]
[1770837825458,11.2607,79.976,79.929,11.41156436]
[1770837825959,4.00489852,79.97,79.929,11.41156436]
[1770837826161,15.57122274,79.97,79.929,11.41156436]
[1770837826458,11.56632422,79.969,79.926,112.5876]
[1770837826752,15.57122274,79.96,79.916,11.269]
[1770837826955,4.00489852,79.94,79.887,11.41156436]
[1770837827758,15.27069852,79.94,79.89,11.2726]
[1770837827952,4.00489852,79.93,79.89,11.2726]
[1770837828558,4.00489852,79.93,79.893,11.41156436]
[1770837828856,11.56632422,79.968,79.901,11.41156436]
[1770837830860,11.2641,79.952,79.904,11.8965874]
[1770837831864,10.73417593,79.97,79.889,102.4]
[1770837831865,11.63422487,79.947,79.896,11.2719]
[1770837832958,11.63422487,79.934,79.873,11.8965874]
[1770837833256,11.63422487,79.919,79.857,11.8965874]
[1770837833659,11.63422487,79.919,79.866,11.8965874]
[1770837834564,11.63422487,79.934,79.879,11.8965874]
[1770837835861,11.63422487,79.949,79.899,11.8965874]
[1770837836159,11.63422487,79.964,79.899,11.8965874]
[1770837836756,11.63422487,79.958,79.91,11.2698]
[1770837837359,22.89882487,79.948,79.899,23.1679874]
[1770837837654,11.63422487,79.947,79.882,11.8965874]
[1770837838967,11.2662,79.937,79.888,11.273]
[1770837839265,11.63422487,79.936,79.888,11.273]
[1770837839469,11.2665,79.935,79.888,11.273]